[Event "*** Titled Tuesday Blitz"]
[Site "Chess.com"]
[Date "2021.04.06"]
[Round "8"]
[White "Alexander_Moskalenko"]
[Black "Fandorine"]
[Result "1/2-1/2"]
[WhiteElo "2763"]
[BlackElo "2902"]
[TimeControl "180+1"]
[EndTime "11:27:55 PDT"]
[Termination "Game drawn by agreement"]

1. e4 {[%clk 0:03:00.9]} 1... c5 {[%clk 0:02:52.5]} 2. Ne2 {[%clk 0:03:01.1]}
2... d6 {[%clk 0:02:46.7]} 3. g3 {[%clk 0:03:00.7]} 3... d5 {[%clk 0:02:46.1]}
4. Bg2 {[%clk 0:02:59.3]} 4... dxe4 {[%clk 0:02:45]} 5. Nbc3 {[%clk 0:02:59.9]}
5... Nf6 {[%clk 0:02:45.3]} 6. Nxe4 {[%clk 0:02:58.4]} 6... Nxe4 {[%clk
0:02:45.6]} 7. Bxe4 {[%clk 0:02:59.3]} 7... Nd7 {[%clk 0:02:46.1]} 8. d4 {[%clk
0:02:54.4]} 8... Nf6 {[%clk 0:02:45.9]} 9. Bg2 {[%clk 0:02:54.9]} 9... e6 {[%clk
0:02:41.6]} 10. O-O {[%clk 0:02:54.8]} 10... Be7 {[%clk 0:02:38.4]} 11. c4
{[%clk 0:02:52.6]} 11... O-O {[%clk 0:02:35]} 12. b3 {[%clk 0:02:41.7]} 12...
cxd4 {[%clk 0:02:11.8]} 13. Nxd4 {[%clk 0:02:42.6]} 13... a6 {[%clk 0:02:11.9]}
14. Re1 {[%clk 0:02:39.1]} 14... Bb4 {[%clk 0:02:08.2]} 15. Bd2 {[%clk
0:02:39.5]} 15... Bxd2 {[%clk 0:02:02.6]} 16. Qxd2 {[%clk 0:02:40.4]} 16... Qc7
{[%clk 0:02:03.1]} 17. Rad1 {[%clk 0:02:38.7]} 17... Bd7 {[%clk 0:02:01.9]} 18.
Qg5 {[%clk 0:02:30.6]} 18... h6 {[%clk 0:01:58.3]} 19. Qe5 {[%clk 0:02:30.5]}
19... Rfc8 {[%clk 0:01:50.1]} 20. Qxc7 {[%clk 0:02:28.8]} 20... Rxc7 {[%clk
0:01:50.3]} 21. a4 {[%clk 0:02:22.5]} 21... Rb8 {[%clk 0:01:47.4]} 22. f4 {[%clk
0:02:19.4]} 22... Kf8 {[%clk 0:01:35.4]} 23. h4 {[%clk 0:02:13.7]} 23... b6
{[%clk 0:01:29.8]} 24. Bf3 {[%clk 0:02:11.1]} 24... h5 {[%clk 0:01:27.8]} 25.
Re5 {[%clk 0:02:09.4]} 25... g6 {[%clk 0:01:27]} 26. Kf2 {[%clk 0:01:58]} 26...
Rc5 {[%clk 0:01:18.6]} 27. Ne2 {[%clk 0:01:45.9]} 27... Be8 {[%clk 0:01:16.4]}
28. Ke3 {[%clk 0:01:39.3]} 28... Rxe5+ {[%clk 0:01:10.7]} 29. fxe5 {[%clk
0:01:39.3]} 29... Nd7 {[%clk 0:01:11.6]} 30. Kf4 {[%clk 0:01:30.3]} 30... Nc5
{[%clk 0:01:11.6]} 31. Nc1 {[%clk 0:01:19]} 31... a5 {[%clk 0:01:05]} 32. Rd4
{[%clk 0:01:19.4]} 32... Ke7 {[%clk 0:01:05]} 33. Bd1 {[%clk 0:01:19.8]} 33...
Bc6 {[%clk 0:00:58.3]} 34. Bc2 {[%clk 0:01:19.2]} 34... Rc8 {[%clk 0:00:48.1]}
35. Nd3 {[%clk 0:01:17]} 35... Nb7 {[%clk 0:00:42.3]} 36. Nf2 {[%clk 0:01:16.9]}
36... Nc5 {[%clk 0:00:38.6]} 37. Nd3 {[%clk 0:01:16.6]} 37... Nb7 {[%clk
0:00:38.3]} 38. Nf2 {[%clk 0:01:16.7]} 38... Nc5 {[%clk 0:00:34.2]} 1/2-1/2

[Event "*** Titled Tuesday Blitz"]
[Site "Chess.com"]
[Date "2021.04.06"]
[Round "8"]
[White "Haykoooo0o"]
[Black "jd001"]
[Result "1-0"]
[WhiteElo "2444"]
[BlackElo "2153"]
[TimeControl "180+1"]
[EndTime "11:27:58 PDT"]
[Termination "Haykoooo0o won by resignation"]

1. d4 {[%clk 0:03:00.9]} 1... e6 {[%clk 0:02:59.5]} 2. Nf3 {[%clk 0:03:01.3]}
2... f5 {[%clk 0:02:59.1]} 3. Bf4 {[%clk 0:03:00.6]} 3... Nf6 {[%clk 0:02:58.8]}
4. e3 {[%clk 0:03:00.6]} 4... Be7 {[%clk 0:02:58.2]} 5. h3 {[%clk 0:03:00.4]}
5... O-O {[%clk 0:02:57.8]} 6. Be2 {[%clk 0:03:00.9]} 6... d6 {[%clk 0:02:57.4]}
7. O-O {[%clk 0:03:01.5]} 7... Nc6 {[%clk 0:02:53.1]} 8. c3 {[%clk 0:03:01.9]}
8... a5 {[%clk 0:02:51.6]} 9. Nbd2 {[%clk 0:03:00.2]} 9... Ne4 {[%clk
0:02:45.9]} 10. Nxe4 {[%clk 0:02:59.4]} 10... fxe4 {[%clk 0:02:45.4]} 11. Nd2
{[%clk 0:03:00.1]} 11... d5 {[%clk 0:02:45]} 12. c4 {[%clk 0:02:57.8]} 12... Bd6
{[%clk 0:02:37.6]} 13. Bxd6 {[%clk 0:02:56.6]} 13... Qxd6 {[%clk 0:02:34.8]} 14.
cxd5 {[%clk 0:02:56.5]} 14... exd5 {[%clk 0:02:33.9]} 15. Bg4 {[%clk 0:02:55.9]}
15... Bxg4 {[%clk 0:02:20.8]} 16. Qxg4 {[%clk 0:02:56.8]} 16... Nb4 {[%clk
0:02:18.1]} 17. Nb3 {[%clk 0:02:41.2]} 17... b6 {[%clk 0:02:14.4]} 18. Nc1
{[%clk 0:02:33.9]} 18... Rf6 {[%clk 0:02:09.4]} 19. a3 {[%clk 0:02:30.2]} 19...
Nc6 {[%clk 0:02:08.2]} 20. Ne2 {[%clk 0:02:26.7]} 20... Raf8 {[%clk 0:02:04.9]}
21. Rac1 {[%clk 0:01:54.8]} 21... Ne7 {[%clk 0:02:03.9]} 22. Nf4 {[%clk
0:01:50.9]} 22... c6 {[%clk 0:02:02.8]} 23. Rc3 {[%clk 0:01:45.5]} 23... Nf5
{[%clk 0:01:55]} 24. Rfc1 {[%clk 0:01:35.8]} 24... Nxd4 {[%clk 0:01:48.2]} 25.
Qd1 {[%clk 0:01:14.5]} 25... Qe5 {[%clk 0:00:44.5]} 26. Nh5 {[%clk 0:00:39.9]}
26... Qxh5 {[%clk 0:00:43.5]} 27. Qxh5 {[%clk 0:00:37.9]} 27... g6 {[%clk
0:00:42.6]} 28. Qd1 {[%clk 0:00:34.6]} 28... Nf5 {[%clk 0:00:41.7]} 29. Rxc6
{[%clk 0:00:33.5]} 1-0

[Event "*** Titled Tuesday Blitz"]
[Site "Chess.com"]
[Date "2021.04.06"]
[Round "8"]
[White "Sergey85Rodchenkov"]
[Black "noblerone"]
[Result "0-1"]
[WhiteElo "2518"]
[BlackElo "2405"]
[TimeControl "180+1"]
[EndTime "11:28:01 PDT"]
[Termination "noblerone won by resignation"]

1. Nf3 {[%clk 0:03:00.9]} 1... d5 {[%clk 0:02:59.9]} 2. c4 {[%clk 0:03:00.3]}
2... c6 {[%clk 0:03:00.1]} 3. Qa4 {[%clk 0:02:59.7]} 3... dxc4 {[%clk
0:02:41.3]} 4. Qxc4 {[%clk 0:02:59.1]} 4... Nf6 {[%clk 0:02:38.8]} 5. Nc3 {[%clk
0:02:57.1]} 5... Bf5 {[%clk 0:02:29.6]} 6. e4 {[%clk 0:02:55.8]} 6... Be6 {[%clk
0:02:26.8]} 7. Qa4 {[%clk 0:02:54]} 7... Nbd7 {[%clk 0:02:12.3]} 8. d4 {[%clk
0:02:52.6]} 8... Nb6 {[%clk 0:02:12]} 9. Qc2 {[%clk 0:02:51.7]} 9... Bg4 {[%clk
0:02:11.6]} 10. Be3 {[%clk 0:02:49.3]} 10... e6 {[%clk 0:02:02]} 11. Bd3 {[%clk
0:02:42]} 11... Be7 {[%clk 0:01:59.3]} 12. O-O {[%clk 0:02:38.6]} 12... Bh5
{[%clk 0:01:47]} 13. Rfe1 {[%clk 0:02:34]} 13... Bg6 {[%clk 0:01:22.7]} 14. a4
{[%clk 0:02:32.6]} 14... a5 {[%clk 0:01:19.6]} 15. Bf4 {[%clk 0:02:28.1]} 15...
O-O {[%clk 0:01:16]} 16. Rad1 {[%clk 0:02:27.1]} 16... Re8 {[%clk 0:01:14.7]}
17. h3 {[%clk 0:02:26.6]} 17... h6 {[%clk 0:01:15.2]} 18. Qb3 {[%clk 0:02:23.2]}
18... Bb4 {[%clk 0:01:14.8]} 19. Ne5 {[%clk 0:02:21.1]} 19... Bh7 {[%clk
0:01:14.6]} 20. Bf1 {[%clk 0:02:19.8]} 20... Nfd7 {[%clk 0:01:14.5]} 21. Nd3
{[%clk 0:02:14.5]} 21... Qe7 {[%clk 0:01:09.3]} 22. Bg3 {[%clk 0:02:12.2]} 22...
Red8 {[%clk 0:01:05.5]} 23. d5 {[%clk 0:02:05.2]} 23... cxd5 {[%clk 0:00:55.2]}
24. exd5 {[%clk 0:02:05]} 24... Bxd3 {[%clk 0:00:55.2]} 25. dxe6 {[%clk
0:01:53]} 25... Bxf1 {[%clk 0:00:35.6]} 26. exd7 {[%clk 0:01:46.4]} 26... Bc4
{[%clk 0:00:18.5]} 27. Qc2 {[%clk 0:01:33.6]} 27... Qf6 {[%clk 0:00:14.8]} 28.
Be5 {[%clk 0:01:31.2]} 28... Qg6 {[%clk 0:00:12.3]} 29. Qxg6 {[%clk 0:01:21.5]}
29... fxg6 {[%clk 0:00:13.2]} 30. Bc7 {[%clk 0:01:21.9]} 30... Rxd7 {[%clk
0:00:13.6]} 31. Bxb6 {[%clk 0:01:21.2]} 31... Rxd1 {[%clk 0:00:14]} 32. Rxd1
{[%clk 0:01:21.4]} 32... Bb3 {[%clk 0:00:14.6]} 33. Rd7 {[%clk 0:01:20]} 33...
Bxc3 {[%clk 0:00:13.6]} 34. bxc3 {[%clk 0:01:20]} 34... Bxa4 {[%clk 0:00:14.2]}
35. Bd4 {[%clk 0:01:16.9]} 35... Bxd7 {[%clk 0:00:13.3]} 0-1

[Event "*** Titled Tuesday Blitz"]
[Site "Chess.com"]
[Date "2021.04.06"]
[Round "8"]
[White "KafkaesqueKnight"]
[Black "TeukkaSalama"]
[Result "1-0"]
[WhiteElo "2274"]
[BlackElo "2365"]
[TimeControl "180+1"]
[EndTime "11:28:02 PDT"]
[Termination "KafkaesqueKnight won on time"]

1. d4 {[%clk 0:03:00.9]} 1... d5 {[%clk 0:02:59.1]} 2. c4 {[%clk 0:03:00.7]}
2... e6 {[%clk 0:02:59.5]} 3. Nc3 {[%clk 0:03:00.7]} 3... Be7 {[%clk 0:02:59.9]}
4. Nf3 {[%clk 0:02:57.4]} 4... Nf6 {[%clk 0:02:59.1]} 5. cxd5 {[%clk 0:02:57.5]}
5... exd5 {[%clk 0:02:58.6]} 6. Qc2 {[%clk 0:02:57.5]} 6... g6 {[%clk
0:02:52.4]} 7. e4 {[%clk 0:02:51.5]} 7... dxe4 {[%clk 0:02:50.3]} 8. Nxe4 {[%clk
0:02:52.4]} 8... Nxe4 {[%clk 0:02:48.6]} 9. Qxe4 {[%clk 0:02:50.8]} 9... O-O
{[%clk 0:02:47.1]} 10. Bc4 {[%clk 0:02:49.8]} 10... Bb4+ {[%clk 0:02:45.2]} 11.
Kf1 {[%clk 0:02:48.2]} 11... Re8 {[%clk 0:02:43.7]} 12. Qf4 {[%clk 0:02:36.3]}
12... Be6 {[%clk 0:02:25.3]} 13. Bxe6 {[%clk 0:02:29.5]} 13... Rxe6 {[%clk
0:02:25.2]} 14. Be3 {[%clk 0:02:28.7]} 14... c6 {[%clk 0:02:15.4]} 15. d5 {[%clk
0:02:21.8]} 15... Bd6 {[%clk 0:02:02.2]} 16. Qh6 {[%clk 0:02:14.6]} 16... cxd5
{[%clk 0:01:58.2]} 17. Ng5 {[%clk 0:02:13.7]} 17... Qf6 {[%clk 0:01:01.3]} 18.
Qxh7+ {[%clk 0:02:12.5]} 18... Kf8 {[%clk 0:01:01.4]} 19. Nxe6+ {[%clk
0:02:13.1]} 19... Qxe6 {[%clk 0:00:50.4]} 20. Bh6+ {[%clk 0:02:12.7]} 20... Ke7
{[%clk 0:00:44.4]} 21. Re1 {[%clk 0:02:10.3]} 21... Be5 {[%clk 0:00:42.9]} 22.
Qg8 {[%clk 0:01:35.6]} 22... Qf5 {[%clk 0:00:17]} 23. Bg7 {[%clk 0:01:15.4]}
23... Nc6 {[%clk 0:00:05]} 24. Qxa8 {[%clk 0:01:13.6]} 24... Kd6 {[%clk
0:00:02]} 25. Bxe5+ {[%clk 0:01:06.7]} 25... Nxe5 {[%clk 0:00:02.6]} 26. Qb8+
{[%clk 0:01:05.2]} 26... Ke6 {[%clk 0:00:03.2]} 27. Qxe5+ {[%clk 0:01:05.3]} 1-0

[Event "*** Titled Tuesday Blitz"]
[Site "Chess.com"]
[Date "2021.04.06"]
[Round "8"]
[White "LiverpooL174"]
[Black "shnitez"]
[Result "1-0"]
[WhiteElo "2684"]
[BlackElo "2507"]
[TimeControl "180+1"]
[EndTime "11:28:03 PDT"]
[Termination "LiverpooL174 won by checkmate"]

1. e4 {[%clk 0:03:00.9]} 1... c5 {[%clk 0:02:59.7]} 2. Nf3 {[%clk 0:03:01.4]}
2... e6 {[%clk 0:02:59.3]} 3. b3 {[%clk 0:03:01.7]} 3... b6 {[%clk 0:02:58.3]}
4. Bb2 {[%clk 0:03:02.2]} 4... Bb7 {[%clk 0:02:58.9]} 5. Bd3 {[%clk 0:03:02.9]}
5... Nf6 {[%clk 0:02:54.4]} 6. e5 {[%clk 0:03:03.5]} 6... Nh5 {[%clk 0:02:54.6]}
7. g3 {[%clk 0:02:55.3]} 7... f5 {[%clk 0:02:43.1]} 8. c4 {[%clk 0:02:42]} 8...
g6 {[%clk 0:02:25.8]} 9. O-O {[%clk 0:02:40.9]} 9... Bg7 {[%clk 0:02:16.8]} 10.
Be2 {[%clk 0:02:40.4]} 10... Nc6 {[%clk 0:02:08.8]} 11. d4 {[%clk 0:02:39.9]}
11... cxd4 {[%clk 0:02:01.5]} 12. Nxd4 {[%clk 0:02:40.1]} 12... Nxd4 {[%clk
0:02:02]} 13. Bxd4 {[%clk 0:02:39.6]} 13... Qg5 {[%clk 0:01:28.4]} 14. h4 {[%clk
0:02:38.2]} 14... Qh6 {[%clk 0:01:25.7]} 15. Nc3 {[%clk 0:02:33.5]} 15... O-O
{[%clk 0:01:22.4]} 16. Bf3 {[%clk 0:02:31.5]} 16... Bc6 {[%clk 0:01:10.5]} 17.
Nb5 {[%clk 0:02:30.1]} 17... Kh8 {[%clk 0:00:31.7]} 18. Bxc6 {[%clk 0:02:27.7]}
18... dxc6 {[%clk 0:00:31.3]} 19. Nd6 {[%clk 0:02:28.1]} 19... c5 {[%clk
0:00:30]} 20. Bb2 {[%clk 0:02:26.5]} 20... Rad8 {[%clk 0:00:18.2]} 21. Qe2
{[%clk 0:02:26.1]} 21... f4 {[%clk 0:00:16.2]} 22. Kh2 {[%clk 0:02:10.9]} 22...
f3 {[%clk 0:00:11.9]} 23. Qc2 {[%clk 0:02:00.7]} 23... g5 {[%clk 0:00:11.5]} 24.
Qd2 {[%clk 0:01:58.9]} 24... Nf4 {[%clk 0:00:10.5]} 25. Nf7+ {[%clk 0:01:54.6]}
25... Rxf7 {[%clk 0:00:09.8]} 26. Qxd8+ {[%clk 0:01:55.1]} 26... Rf8 {[%clk
0:00:09.9]} 27. Qxg5 {[%clk 0:01:55.8]} 27... Qxg5 {[%clk 0:00:07.3]} 28. hxg5
{[%clk 0:01:56.7]} 28... Nd3 {[%clk 0:00:06.6]} 29. Bc3 {[%clk 0:01:56.6]} 29...
Nxe5 {[%clk 0:00:06.8]} 30. Bxe5 {[%clk 0:01:56.2]} 30... Bxe5 {[%clk
0:00:07.7]} 31. Rae1 {[%clk 0:01:56.7]} 31... Rf5 {[%clk 0:00:05.8]} 32. Re3
{[%clk 0:01:47]} 32... Rxg5 {[%clk 0:00:05]} 33. Rxf3 {[%clk 0:01:47.4]} 33...
Bd4 {[%clk 0:00:04.6]} 34. Rf7 {[%clk 0:01:45]} 34... e5 {[%clk 0:00:04.4]} 35.
Rxa7 {[%clk 0:01:44.1]} 35... e4 {[%clk 0:00:04.9]} 36. Kg2 {[%clk 0:01:44]}
36... Re5 {[%clk 0:00:04.8]} 37. Rb7 {[%clk 0:01:42.8]} 37... Re6 {[%clk
0:00:05.1]} 38. Rh1 {[%clk 0:01:42]} 38... h6 {[%clk 0:00:04.1]} 39. Rh5 {[%clk
0:01:42.5]} 39... Kg8 {[%clk 0:00:03.3]} 40. Rd5 {[%clk 0:01:41.9]} 40... Re8
{[%clk 0:00:03.7]} 41. Rd6 {[%clk 0:01:40.7]} 41... e3 {[%clk 0:00:03.4]} 42.
fxe3 {[%clk 0:01:39.6]} 42... Bxe3 {[%clk 0:00:04.3]} 43. Rg6+ {[%clk
0:01:39.8]} 43... Kf8 {[%clk 0:00:03.7]} 44. Rgg7 {[%clk 0:01:39]} 44... Bg5
{[%clk 0:00:03.1]} 45. Rbf7# {[%clk 0:01:39.3]} 1-0

[Event "*** Titled Tuesday Blitz"]
[Site "Chess.com"]
[Date "2021.04.06"]
[Round "8"]
[White "VladimirBugayev"]
[Black "C_K_G"]
[Result "0-1"]
[WhiteElo "2244"]
[BlackElo "2064"]
[TimeControl "180+1"]
[EndTime "11:28:12 PDT"]
[Termination "C_K_G won on time"]

1. e4 {[%clk 0:03:00.9]} 1... c5 {[%clk 0:02:59.7]} 2. Nc3 {[%clk 0:03:00.3]}
2... d6 {[%clk 0:03:00.6]} 3. f4 {[%clk 0:02:58.9]} 3... e6 {[%clk 0:03:00.8]}
4. Nf3 {[%clk 0:02:56.4]} 4... a6 {[%clk 0:03:01.1]} 5. g3 {[%clk 0:02:42.4]}
5... Nc6 {[%clk 0:03:00.3]} 6. Bg2 {[%clk 0:02:42.5]} 6... Nf6 {[%clk
0:03:00.4]} 7. O-O {[%clk 0:02:42.9]} 7... Be7 {[%clk 0:03:00.6]} 8. d3 {[%clk
0:02:43.2]} 8... O-O {[%clk 0:03:00.5]} 9. b3 {[%clk 0:02:43.7]} 9... Qc7 {[%clk
0:03:00.7]} 10. Bb2 {[%clk 0:02:44.2]} 10... b5 {[%clk 0:03:00.3]} 11. a4 {[%clk
0:02:40.9]} 11... b4 {[%clk 0:02:58.4]} 12. Nb1 {[%clk 0:02:40.6]} 12... Bb7
{[%clk 0:02:59.3]} 13. Nbd2 {[%clk 0:02:40.9]} 13... Rac8 {[%clk 0:02:56.5]} 14.
Qe1 {[%clk 0:02:29.7]} 14... Rfe8 {[%clk 0:02:53.6]} 15. h3 {[%clk 0:02:26.4]}
15... d5 {[%clk 0:02:49.8]} 16. Ne5 {[%clk 0:02:04.3]} 16... Nd7 {[%clk
0:02:42.5]} 17. Ng4 {[%clk 0:01:56.9]} 17... Nd4 {[%clk 0:02:37.7]} 18. Rc1
{[%clk 0:01:52.2]} 18... dxe4 {[%clk 0:02:29]} 19. dxe4 {[%clk 0:01:50.4]} 19...
Nf6 {[%clk 0:02:22.4]} 20. Nc4 {[%clk 0:01:36.5]} 20... Rcd8 {[%clk 0:02:12.2]}
21. Nf2 {[%clk 0:01:21.7]} 21... a5 {[%clk 0:02:04]} 22. Nd3 {[%clk 0:01:20.6]}
22... Ba6 {[%clk 0:02:03.3]} 23. Nde5 {[%clk 0:01:11.1]} 23... Nd7 {[%clk
0:02:00.2]} 24. Rf2 {[%clk 0:01:07.8]} 24... f6 {[%clk 0:01:54.4]} 25. Nxd7
{[%clk 0:01:01.6]} 25... Bxc4 {[%clk 0:01:47.3]} 26. Nxf6+ {[%clk 0:00:57.3]}
26... Bxf6 {[%clk 0:01:48.2]} 27. e5 {[%clk 0:00:45.6]} 27... Bd5 {[%clk
0:01:43.7]} 28. exf6 {[%clk 0:00:42]} 28... gxf6 {[%clk 0:01:44.6]} 29. Bxd4
{[%clk 0:00:18.5]} 29... cxd4 {[%clk 0:01:43.6]} 30. Qd1 {[%clk 0:00:18.5]}
30... Bxg2 {[%clk 0:01:40.8]} 31. Kxg2 {[%clk 0:00:16.9]} 31... e5 {[%clk
0:01:40.6]} 32. fxe5 {[%clk 0:00:13.4]} 32... fxe5 {[%clk 0:01:41.5]} 33. Qg4+
{[%clk 0:00:12.3]} 33... Qg7 {[%clk 0:01:35.1]} 34. Qxg7+ {[%clk 0:00:10.8]}
34... Kxg7 {[%clk 0:01:33.4]} 35. Rcf1 {[%clk 0:00:10.7]} 35... Re7 {[%clk
0:01:31]} 36. Rf5 {[%clk 0:00:09.4]} 36... e4 {[%clk 0:01:28.5]} 37. Rg5+ {[%clk
0:00:08.1]} 37... Kh8 {[%clk 0:01:28.5]} 38. Rgf5 {[%clk 0:00:08.2]} 38... d3
{[%clk 0:01:27.4]} 39. cxd3 {[%clk 0:00:06.4]} 39... exd3 {[%clk 0:01:28.3]} 40.
Rd1 {[%clk 0:00:01.4]} 40... d2 {[%clk 0:01:24.3]} 0-1

[Event "*** Titled Tuesday Blitz"]
[Site "Chess.com"]
[Date "2021.04.06"]
[Round "8"]
[White "fyall777"]
[Black "Arseniy_Nesterov"]
[Result "0-1"]
[WhiteElo "2441"]
[BlackElo "2745"]
[TimeControl "180+1"]
[EndTime "11:28:18 PDT"]
[Termination "Arseniy_Nesterov won by checkmate"]

1. e4 {[%clk 0:03:00.9]} 1... e5 {[%clk 0:02:59.6]} 2. Nf3 {[%clk 0:03:00.8]}
2... Nc6 {[%clk 0:02:59.6]} 3. Bb5 {[%clk 0:03:01.1]} 3... a6 {[%clk 0:02:59.6]}
4. Ba4 {[%clk 0:03:00.8]} 4... b5 {[%clk 0:02:59.7]} 5. Bb3 {[%clk 0:02:59.3]}
5... Na5 {[%clk 0:03:00.6]} 6. O-O {[%clk 0:02:58.4]} 6... d6 {[%clk 0:03:00.5]}
7. d4 {[%clk 0:02:57.7]} 7... exd4 {[%clk 0:03:01.4]} 8. Nxd4 {[%clk 0:02:49.4]}
8... Bb7 {[%clk 0:03:01.4]} 9. Re1 {[%clk 0:02:26.8]} 9... c5 {[%clk 0:02:54.1]}
10. Nf5 {[%clk 0:02:02.3]} 10... c4 {[%clk 0:02:39.5]} 11. e5 {[%clk 0:02:01.9]}
11... d5 {[%clk 0:02:36]} 12. Qg4 {[%clk 0:01:19.6]} 12... g6 {[%clk 0:02:07.9]}
13. Nd6+ {[%clk 0:01:19]} 13... Bxd6 {[%clk 0:02:07.9]} 14. exd6+ {[%clk
0:01:19.2]} 14... Kf8 {[%clk 0:02:08.5]} 15. d7 {[%clk 0:01:19]} 15... Qc7
{[%clk 0:00:51.3]} 16. Bf4 {[%clk 0:01:09.5]} 16... Qc6 {[%clk 0:00:47.8]} 17.
Be5 {[%clk 0:00:48.4]} 17... f6 {[%clk 0:00:34.3]} 18. Bc3 {[%clk 0:00:48.3]}
18... cxb3 {[%clk 0:00:30.2]} 19. Bxa5 {[%clk 0:00:45.5]} 19... bxc2 {[%clk
0:00:28.2]} 20. Nc3 {[%clk 0:00:34.9]} 20... d4 {[%clk 0:00:20.7]} 21. Ne2
{[%clk 0:00:21.6]} 21... f5 {[%clk 0:00:16.2]} 22. Qxd4 {[%clk 0:00:20.7]} 22...
Qxg2# {[%clk 0:00:15.5]} 0-1

[Event "*** Titled Tuesday Blitz"]
[Site "Chess.com"]
[Date "2021.04.06"]
[Round "8"]
[White "esapunov"]
[Black "AttilaTurzo"]
[Result "1-0"]
[WhiteElo "2714"]
[BlackElo "2511"]
[TimeControl "180+1"]
[EndTime "11:28:24 PDT"]
[Termination "esapunov won by resignation"]

1. c4 {[%clk 0:03:00.9]} 1... c6 {[%clk 0:02:59.5]} 2. Nf3 {[%clk 0:03:00.6]}
2... d5 {[%clk 0:03:00.4]} 3. b3 {[%clk 0:03:00.4]} 3... Bg4 {[%clk 0:02:57.1]}
4. e3 {[%clk 0:02:58.3]} 4... Nd7 {[%clk 0:02:55.2]} 5. h3 {[%clk 0:02:57.3]}
5... Bxf3 {[%clk 0:02:54]} 6. Qxf3 {[%clk 0:02:56.9]} 6... Ngf6 {[%clk
0:02:54.8]} 7. Nc3 {[%clk 0:02:55.4]} 7... e6 {[%clk 0:02:54.2]} 8. Bb2 {[%clk
0:02:54.8]} 8... Bd6 {[%clk 0:02:52.8]} 9. d4 {[%clk 0:02:54]} 9... O-O {[%clk
0:02:52]} 10. Bd3 {[%clk 0:02:54.4]} 10... Qe7 {[%clk 0:02:50.2]} 11. O-O {[%clk
0:02:54.3]} 11... Ba3 {[%clk 0:02:40.9]} 12. Qe2 {[%clk 0:02:53.7]} 12... Bxb2
{[%clk 0:02:40.2]} 13. Qxb2 {[%clk 0:02:54]} 13... Rfe8 {[%clk 0:02:34.2]} 14.
Rfd1 {[%clk 0:02:53]} 14... a5 {[%clk 0:02:34.1]} 15. Rac1 {[%clk 0:02:52.3]}
15... Qb4 {[%clk 0:02:17.3]} 16. a3 {[%clk 0:02:41.1]} 16... Qb6 {[%clk
0:02:16.7]} 17. Rb1 {[%clk 0:02:31.8]} 17... Rac8 {[%clk 0:02:10.8]} 18. Bf1
{[%clk 0:02:31.6]} 18... Ne4 {[%clk 0:02:02.9]} 19. Nxe4 {[%clk 0:02:23.8]}
19... dxe4 {[%clk 0:02:03.8]} 20. Qc2 {[%clk 0:02:15.9]} 20... f5 {[%clk
0:02:01.3]} 21. b4 {[%clk 0:02:15.7]} 21... axb4 {[%clk 0:01:58.1]} 22. axb4
{[%clk 0:02:15.9]} 22... Qc7 {[%clk 0:01:56.5]} 23. Qb3 {[%clk 0:02:09]} 23...
b6 {[%clk 0:01:52.8]} 24. c5 {[%clk 0:02:04.3]} 24... b5 {[%clk 0:01:52.5]} 25.
Ra1 {[%clk 0:01:56.7]} 25... Nf6 {[%clk 0:01:39.5]} 26. Ra6 {[%clk 0:01:55.7]}
26... Nd5 {[%clk 0:01:39.3]} 27. Rda1 {[%clk 0:01:53.8]} 27... Qd7 {[%clk
0:01:35.6]} 28. g3 {[%clk 0:01:46.6]} 28... h6 {[%clk 0:01:34.3]} 29. Be2 {[%clk
0:01:45.3]} 29... Kh7 {[%clk 0:01:34]} 30. Bd1 {[%clk 0:01:34.2]} 30... Rc7
{[%clk 0:01:32.9]} 31. Qb2 {[%clk 0:01:33.9]} 31... g5 {[%clk 0:01:29.3]} 32.
Bb3 {[%clk 0:01:33.4]} 32... Rf8 {[%clk 0:01:29.6]} 33. Bxd5 {[%clk 0:01:25.7]}
33... exd5 {[%clk 0:01:27.4]} 34. Qe2 {[%clk 0:01:25.4]} 34... Kg6 {[%clk
0:01:21.9]} 35. f4 {[%clk 0:01:22.2]} 35... gxf4 {[%clk 0:01:11.2]} 36. gxf4
{[%clk 0:01:21.5]} 36... Kh7 {[%clk 0:01:06.1]} 37. Kh2 {[%clk 0:01:20.5]} 37...
Rg8 {[%clk 0:01:04.4]} 38. Qh5 {[%clk 0:01:14.8]} 38... Qe6 {[%clk 0:00:53.5]}
39. Ra7 {[%clk 0:01:10.1]} 39... Rxa7 {[%clk 0:00:53.1]} 40. Rxa7+ {[%clk
0:01:09.5]} 40... Rg7 {[%clk 0:00:53.5]} 41. Ra8 {[%clk 0:01:02.2]} 41... Rf7
{[%clk 0:00:37.2]} 42. Rd8 {[%clk 0:00:56.8]} 42... Qg6 {[%clk 0:00:34.6]} 43.
Rh8+ {[%clk 0:00:52.7]} 1-0

[Event "*** Titled Tuesday Blitz"]
[Site "Chess.com"]
[Date "2021.04.06"]
[Round "8"]
[White "Gerodot71"]
[Black "Keures"]
[Result "1-0"]
[WhiteElo "2541"]
[BlackElo "2354"]
[TimeControl "180+1"]
[EndTime "11:28:24 PDT"]
[Termination "Gerodot71 won by resignation"]

1. d4 {[%clk 0:02:57.8]} 1... Nf6 {[%clk 0:02:59.5]} 2. c4 {[%clk 0:02:57.7]}
2... e6 {[%clk 0:02:55.1]} 3. Nc3 {[%clk 0:02:57.9]} 3... Bb4 {[%clk 0:02:50.2]}
4. f3 {[%clk 0:02:57.8]} 4... d5 {[%clk 0:02:13.9]} 5. a3 {[%clk 0:02:56.7]}
5... Bxc3+ {[%clk 0:02:08.8]} 6. bxc3 {[%clk 0:02:57.6]} 6... c5 {[%clk
0:02:06.6]} 7. cxd5 {[%clk 0:02:55.4]} 7... exd5 {[%clk 0:02:03.1]} 8. e3 {[%clk
0:02:54.4]} 8... O-O {[%clk 0:02:00.5]} 9. Bd3 {[%clk 0:02:54.1]} 9... Re8
{[%clk 0:02:00.5]} 10. Ne2 {[%clk 0:02:49.5]} 10... b6 {[%clk 0:02:00.6]} 11.
O-O {[%clk 0:02:49]} 11... Ba6 {[%clk 0:02:00.5]} 12. Ng3 {[%clk 0:02:48.1]}
12... Bxd3 {[%clk 0:01:59.2]} 13. Qxd3 {[%clk 0:02:49]} 13... Nbd7 {[%clk
0:01:57.4]} 14. Bb2 {[%clk 0:02:45]} 14... Nf8 {[%clk 0:01:54.7]} 15. e4 {[%clk
0:02:36.5]} 15... dxe4 {[%clk 0:01:54.9]} 16. fxe4 {[%clk 0:02:35.6]} 16... cxd4
{[%clk 0:01:55.1]} 17. cxd4 {[%clk 0:02:36.5]} 17... Ne6 {[%clk 0:01:51.5]} 18.
e5 {[%clk 0:02:19.5]} 18... Nd5 {[%clk 0:01:46.1]} 19. Nf5 {[%clk 0:02:18.6]}
19... Qg5 {[%clk 0:01:37.8]} 20. Nd6 {[%clk 0:02:11]} 20... Re7 {[%clk
0:01:30.8]} 21. Bc1 {[%clk 0:01:56]} 21... Qg4 {[%clk 0:01:05.3]} 22. Bb2 {[%clk
0:01:43.3]} 22... Nef4 {[%clk 0:01:03.2]} 23. Qf3 {[%clk 0:01:29.4]} 23... Qxf3
{[%clk 0:00:58.9]} 24. Rxf3 {[%clk 0:01:30.3]} 24... f6 {[%clk 0:00:53.9]} 25.
Rd1 {[%clk 0:01:15.2]} 25... Rc7 {[%clk 0:00:45.1]} 26. Rd2 {[%clk 0:01:05.9]}
26... g5 {[%clk 0:00:32.6]} 27. g3 {[%clk 0:01:00.5]} 27... Nh3+ {[%clk
0:00:32.8]} 28. Kg2 {[%clk 0:00:59.2]} 28... g4 {[%clk 0:00:33.4]} 29. Rfd3
{[%clk 0:00:52.8]} 29... fxe5 {[%clk 0:00:33]} 30. dxe5 {[%clk 0:00:52.3]} 30...
Rf8 {[%clk 0:00:33.1]} 31. Rxd5 {[%clk 0:00:50.6]} 31... Ng5 {[%clk 0:00:27]}
32. R5d4 {[%clk 0:00:40.4]} 32... Nf3 {[%clk 0:00:25.8]} 33. Rxg4+ {[%clk
0:00:40.5]} 33... Kh8 {[%clk 0:00:26]} 34. e6+ {[%clk 0:00:38.2]} 1-0